bitfinex-derivatives/quotes_ETHF0:USTF0_20250123
["timestamp","ask_amount","ask_price","bid_price","bid_amount"]
[1737665168617,3.2078,3271.3,3270.3,4.95]
[1737665168914,0.00458547,3271.4,3271.0,3.2078]
[1737665169411,3.2078,3273.4,3271.0,8.2078]
[1737665169612,3.2078,3273.4,3272.4,3.2078]
[1737665169613,0.61075,3273.2,3272.4,3.2078]
[1737665169813,3.2078,3273.4,3272.5,3.2078]
[1737665169814,0.61072,3273.3,3272.5,3.2078]
[1737665170012,3.2078,3273.4,3272.6,3.2078]
[1737665170314,3.2078,3273.4,3272.5,3.2078]
[1737665170315,0.61079,3273.0,3272.5,3.2078]
[1737665170517,3.2078,3273.4,3272.5,3.2078]
[1737665170812,0.00458547,3273.3,3272.7,0.00458547]
[1737665171012,0.00458547,3273.3,3273.0,3.2078]
[1737665172515,3.2078,3275.4,3273.0,3.2078]
[1737665172516,0.61018,3276.2,3274.8,4.95415847]
[1737665172812,0.61018,3276.2,3274.1,3.2078]
[1737665172813,0.06104819,3276.1,3276.0,3.2078]
[1737665173311,0.06104819,3276.1,3274.2,4.95415847]
[1737665173312,0.11174095,3276.1,3275.1,3.2078]
[1737665173524,0.05069276,3276.0,3275.7,3.2078]
[1737665173711,0.05069276,3276.0,3275.0,3.2078]
[1737665173905,0.61026,3275.8,3275.0,3.2078]
[1737665174111,0.05069276,3275.7,3275.4,3.2078]
[1737665174311,0.05069276,3275.6,3275.0,3.2078]
[1737665174511,0.00457798,3275.9,3275.5,8.16195847]
[1737665174704,3.2078,3277.9,3275.5,8.16195847]
[1737665174905,0.05068735,3276.9,3276.5,3.2078]
[1737665175105,0.05068721,3276.8,3275.5,3.2078]
[1737665175617,0.05068721,3276.8,3275.2,0.00457798]
[1737665175618,3.2078,3276.1,3275.2,0.00457798]
[1737665175812,3.2078,3275.7,3275.2,0.00457798]
[1737665176120,0.05069228,3275.6,3275.2,0.00457798]
[1737665176617,0.61025,3275.9,3275.2,0.00457798]
[1737665176810,0.05068276,3275.8,3275.2,0.00457798]
[1737665177013,3.2078,3275.7,3274.7,3.2078]
[1737665177315,0.61032,3275.5,3274.7,3.2078]
[1737665177517,0.61038,3275.2,3274.5,3.2078]
[1737665177708,3.2078,3275.3,3274.5,3.2078]
[1737665177709,0.6104,3275.0,3274.5,3.2078]
[1737665177909,3.2078,3275.3,3274.5,3.2078]
[1737665178105,0.61032,3275.5,3274.1,3.2078]
[1737665178305,0.00457798,3275.1,3274.7,3.2078]
[1737665178510,0.61042,3275.0,3274.4,0.00457798]
[1737665178811,0.6104,3275.0,3274.4,0.00457798]
[1737665179011,3.21237798,3275.1,3274.4,0.00457798]
[1737665179219,3.81829,3274.5,3274.4,0.00457798]
[1737665179412,3.2078,3274.5,3274.4,0.00457798]
[1737665179612,3.81829,3274.5,3274.4,0.00457798]
[1737665179909,3.2078,3275.0,3274.4,0.00457798]
[1737665180109,3.2078,3274.5,3274.4,0.00457798]
[1737665180812,0.00457798,3275.1,3274.4,0.00457798]
[1737665181216,3.81829,3274.5,3274.4,0.00457798]
[1737665181421,3.81829,3274.5,3273.4,3.2078]
[1737665181422,3.2078,3274.5,3273.4,3.2078]
[1737665181614,3.81839,3274.0,3273.4,3.2078]
[1737665181812,3.2078,3274.0,3273.4,3.2078]
[1737665182713,3.2078,3275.0,3273.8,3.2078]
[1737665182917,3.81828,3274.6,3273.8,3.2078]
[1737665183116,0.61047,3274.6,3274.2,3.2078]
[1737665183416,0.61042,3274.9,3274.2,3.2078]
[1737665183722,3.2078,3275.0,3274.2,3.2078]
[1737665185126,3.2078,3275.0,3274.3,0.61052]
[1737665185421,0.00457798,3275.1,3274.6,3.2078]
[1737665186520,3.2078,3276.2,3275.2,0.61036]
[1737665186726,3.2078,3276.2,3275.0,3.2078]
[1737665186926,3.2078,3276.2,3275.1,0.61038]
[1737665187123,1.9189,3276.5,3275.6,3.2078]
[1737665187322,3.2078,3276.7,3276.1,3.2078]
[1737665187624,3.2078,3276.7,3276.1,3.21237798]
[1737665187930,3.21237798,3276.7,3276.1,3.21237798]
[1737665188221,0.00457798,3276.7,3276.1,3.21237798]
[1737665188823,0.00457798,3276.7,3276.1,0.00457798]
[1737665189523,0.00457798,3276.7,3276.6,3.2078]
[1737665190031,3.2078,3277.8,3276.6,8.2078]
[1737665190216,3.2078,3277.8,3276.2,3.31228526]
[1737665190217,0.60995,3277.4,3276.2,0.61016]
[1737665190422,3.2078,3277.8,3277.0,3.2078]
[1737665191222,0.00457798,3277.7,3277.0,3.2078]
[1737665191634,0.00457798,3277.7,3277.6,3.2078]
[1737665192128,1.8492,3278.6,3277.6,3.2078]
[1737665192328,1.8492,3278.6,3278.3,3.2078]
[1737665192526,3.2078,3279.0,3278.3,3.2078]
[1737665192724,3.2078,3279.0,3278.0,3.2078]
[1737665192929,0.60971,3278.8,3278.0,3.2078]
[1737665193131,0.60975,3278.6,3278.0,3.2078]
[1737665193327,3.2078,3279.0,3278.0,3.2078]
[1737665193527,0.00457798,3278.7,3278.1,0.00457798]
[1737665193729,0.60973,3278.6,3278.1,0.00457798]
[1737665193928,0.00457798,3278.7,3278.1,0.00457798]
[1737665194235,3.2078,3278.6,3278.1,0.00457798]
[1737665194525,3.2078,3278.2,3278.1,0.00457798]
[1737665194731,0.60993,3277.6,3277.1,3.2078]
[1737665194929,6.52008526,3278.2,3277.1,3.2078]
[1737665195131,0.60986,3278.0,3277.1,3.2078]
[1737665195334,0.60985,3278.0,3277.1,3.2078]
[1737665195536,0.60988,3277.9,3277.1,3.2078]
[1737665195731,0.60988,3277.9,3276.1,3.31228526]
[1737665195732,3.2078,3277.8,3276.4,3.2078]
[1737665195933,0.61002,3277.1,3276.4,3.2078]
[1737665196230,3.2078,3277.4,3276.4,3.2078]
[1737665196431,3.8179,3276.7,3276.4,0.00457798]
[1737665196633,3.2078,3276.7,3276.4,0.00457798]
[1737665197329,3.31228526,3276.6,3275.2,3.2078]
[1737665197635,0.61026,3275.8,3275.2,3.2078]
[1737665197825,3.2078,3275.9,3274.9,3.2078]
[1737665198026,0.61034,3275.4,3274.3,5.0734]
[1737665198226,3.2078,3275.5,3274.4,3.2078]
[1737665198428,3.2078,3275.5,3274.3,1.8656]
[1737665198623,0.61033,3275.4,3274.6,3.21237798]
[1737665198828,0.00457798,3275.3,3274.6,3.21237798]
[1737665199030,0.00457798,3275.3,3275.2,3.2078]
[1737665199333,0.00457798,3275.3,3274.8,3.2078]
[1737665199828,4.9556,3277.0,3275.9,0.61022]
[1737665200022,1.7478,3277.0,3275.7,3.2078]
[1737665200227,1.7478,3277.0,3276.5,3.2078]
[1737665200428,3.2078,3277.5,3276.5,3.2078]
[1737665201128,0.00457798,3277.3,3276.7,3.21237798]
[1737665201328,0.61001,3277.1,3276.7,3.21237798]
[1737665201536,0.61007,3276.8,3276.7,0.00457798]
[1737665204024,5.61007,3276.8,3276.7,0.00457798]
[1737665204329,5.0,3276.8,3275.6,3.2078]
[1737665204532,0.61026,3275.8,3275.6,3.2078]
[1737665204727,0.61024,3275.9,3275.6,3.2078]
[1737665204926,3.2078,3276.3,3275.4,3.2078]
[1737665205133,0.61027,3275.8,3275.4,3.2078]
[1737665205637,0.61027,3275.8,3275.5,0.00457798]
[1737665206133,0.61028,3275.7,3275.5,0.00457798]
[1737665206340,0.61029,3275.6,3275.5,0.00457798]
[1737665206827,0.61038,3275.1,3274.7,3.2078]
[1737665207031,3.2078,3275.4,3274.7,3.2078]
[1737665207427,3.44941,3276.7,3275.2,3.2078]
[1737665207428,3.2078,3275.9,3275.2,3.2078]
[1737665208232,3.2078,3275.9,3275.4,0.6103]
[1737665208433,3.2078,3275.9,3275.2,3.81814]
[1737665208729,3.21237798,3275.9,3275.2,3.82272798]
[1737665209137,3.21237798,3275.9,3275.2,3.21237798]
[1737665209335,3.82260798,3275.9,3275.2,3.21237798]
[1737665209537,0.61025,3275.8,3275.2,3.21237798]
[1737665209733,3.21237798,3275.9,3275.2,3.21237798]
[1737665209934,0.00457798,3275.9,3275.6,3.2078]
[1737665210531,3.2078,3276.4,3275.6,3.2078]
[1737665210729,3.2078,3276.4,3275.9,3.2078]
[1737665210730,3.81794,3276.4,3275.9,3.2078]
[1737665210930,3.2078,3276.4,3275.9,3.2078]
[1737665211631,3.2078,3276.4,3275.4,3.2078]
[1737665212139,0.6103,3275.5,3275.4,3.2078]
[1737665212335,3.2078,3276.0,3275.4,3.2078]
[1737665212638,0.00457798,3276.5,3275.9,6.52008526]
[1737665212842,0.00457798,3276.5,3276.4,3.2078]
[1737665213537,3.2078,3277.2,3276.4,3.2078]
[1737665213734,3.2078,3277.2,3276.4,3.81793]
[1737665213928,3.2078,3277.2,3276.4,44.0078]
[1737665214532,3.2078,3277.2,3276.8,0.03506287]
[1737665215041,3.2078,3277.2,3276.4,44.0078]
[1737665215042,0.61457798,3277.1,3277.0,0.04267079]
[1737665216335,0.00457798,3277.1,3277.0,0.04267079]
[1737665216727,0.61457798,3277.1,3277.0,0.04267079]
[1737665216933,0.00457798,3277.1,3277.0,0.04267079]
[1737665217638,0.61457798,3277.1,3277.0,0.04267079]
[1737665218139,0.00457798,3277.1,3277.0,0.04267079]
[1737665219341,0.61457798,3277.1,3277.0,0.04267079]
[1737665219729,0.61012,3276.5,3276.1,3.2078]
[1737665220041,0.61009,3276.7,3276.1,3.2078]
[1737665220236,3.2078,3276.8,3275.7,40.8]
[1737665220436,3.2078,3276.8,3276.1,3.2078]
[1737665220736,0.61011,3276.6,3275.8,3.81804]
[1737665220945,0.61012,3276.5,3275.8,3.2078]
[1737665221243,3.2078,3276.8,3275.8,3.2078]
[1737665221542,0.00457798,3277.1,3276.4,3.81793]
[1737665221728,0.00457798,3277.1,3277.0,3.2078]
[1737665221935,0.60989,3277.8,3277.0,3.2078]
[1737665222442,4.996,3277.9,3277.0,3.2078]
[1737665222643,0.60988,3277.8,3277.0,3.81782]
[1737665223142,4.996,3277.9,3277.0,3.2078]
[1737665223346,0.00457798,3277.7,3277.1,0.00457798]
[1737665223541,3.81779,3277.2,3277.1,0.00457798]
[1737665223734,3.81779,3277.2,3275.5,1.9249]
[1737665223735,3.2078,3277.2,3276.0,3.2078]
[1737665223935,0.61015,3276.4,3276.0,3.2078]
[1737665224242,3.2078,3276.8,3276.0,3.2078]
[1737665224738,0.61008,3276.7,3276.0,3.2078]
[1737665224938,3.81786,3276.8,3276.1,0.00457798]
[1737665225141,3.2078,3276.8,3276.1,0.00457798]
[1737665225534,3.2078,3276.7,3276.1,0.00457798]
[1737665225738,0.61016,3276.3,3276.1,0.00457798]
[1737665225936,0.61017,3276.2,3276.1,0.00457798]
[1737665226242,8.2078,3276.3,3275.1,3.2078]
[1737665226543,3.2078,3275.8,3274.9,1.9302]
[1737665226944,3.31228526,3276.0,3274.9,1.9302]
[1737665226945,3.81817,3275.2,3274.9,1.9302]
[1737665227245,3.2078,3275.6,3274.4,3.2078]
[1737665227445,0.61035,3275.3,3274.7,0.00457798]
[1737665227835,0.00457798,3275.4,3274.7,0.00457798]
[1737665228239,0.00457798,3275.4,3274.8,3.2078]
[1737665228540,8.113,3278.3,3274.7,0.00457798]
[1737665228541,3.2078,3276.9,3275.3,6.52008526]
[1737665228740,1.7964,3278.2,3276.7,3.2078]
[1737665229038,0.05060865,3278.1,3277.7,3.2078]
[1737665229241,10.59529313,3278.8,3277.7,3.2078]
[1737665229442,0.60973,3278.6,3278.0,3.2078]
[1737665229645,5.0466,3278.9,3277.5,3.2078]
[1737665229834,0.00457798,3278.6,3278.1,3.2078]
[1737665230033,0.60976,3278.5,3277.9,0.00457798]
[1737665230234,0.00457798,3278.6,3278.1,3.2078]
[1737665230443,0.00457798,3278.6,3277.9,0.00457798]
[1737665230839,0.00457798,3278.6,3278.4,3.2078]
[1737665231446,0.00457798,3278.6,3278.1,3.2078]
[1737665232351,0.00457798,3278.6,3277.9,3.21237798]
[1737665232546,3.2078,3278.3,3277.9,0.00457798]
[1737665232851,0.00457798,3278.6,3277.9,0.00457798]
[1737665233048,0.00457798,3278.6,3277.9,3.21237798]
[1737665233346,10.72491639,3279.0,3278.3,3.2078]
[1737665233547,10.72491639,3279.0,3278.9,3.2078]
[1737665233752,9.26476431,3279.2,3279.1,0.60963]
[1737665233951,1.50126431,3279.2,3279.1,0.60963]
[1737665234142,1.30136431,3279.2,3279.1,5.60963]
[1737665234447,12.86007277,3280.4,3279.1,5.0]
[1737665234649,12.86007277,3280.4,3280.3,3.2078]
[1737665234849,12.86007277,3280.4,3279.4,3.31228526]
[1737665234850,12.86007277,3280.4,3279.9,3.2078]
[1737665235147,12.86007277,3280.4,3280.3,3.2078]
[1737665235448,0.00457798,3280.5,3280.3,3.2078]
[1737665236353,0.00457798,3280.5,3280.3,44.0078]
[1737665237047,0.00457798,3280.5,3280.4,3.92167526]
[1737665237446,0.00457798,3280.5,3280.4,8.92167526]
[1737665237645,0.00367798,3280.5,3280.4,8.92167526]
[1737665237844,0.00367798,3280.5,3280.3,44.61721]
[1737665238149,0.00367798,3280.5,3280.3,49.0078]
[1737665238338,0.00367798,3280.5,3280.3,44.0078]
[1737665238752,0.00367798,3280.5,3280.3,3.2078]
[1737665239144,0.60939,3280.4,3280.3,3.2078]
[1737665239344,0.00367798,3280.5,3280.3,3.2078]
[1737665239546,0.61304798,3280.5,3280.3,3.2078]
[1737665239845,0.00367798,3280.5,3279.8,3.21237798]
[1737665240047,0.60948,3279.9,3279.8,3.21237798]
[1737665240249,0.60947,3280.0,3279.8,3.21237798]
[1737665240451,3.2078,3280.3,3279.8,3.21237798]
[1737665240653,0.60943,3280.2,3279.8,3.21237798]
[1737665240947,0.00367798,3280.5,3279.8,3.21237798]
[1737665241448,0.00367798,3280.5,3280.2,3.2078]
[1737665242751,0.00269046,3280.4,3280.2,3.2078]
[1737665243748,0.00269046,3280.4,3279.8,0.00457798]
[1737665244351,0.00269046,3280.4,3280.0,3.2078]
[1737665245753,0.60948,3280.0,3279.8,0.00457798]
[1737665245950,3.21049046,3280.4,3279.8,0.00457798]
[1737665246358,0.60948,3279.9,3278.8,3.2078]
[1737665246548,6.52008526,3278.9,3277.4,3.2078]
[1737665246750,3.31228526,3278.8,3277.4,3.2078]
[1737665246957,3.31228526,3278.8,3277.8,3.2078]
[1737665247257,0.60968,3278.9,3278.2,3.2078]
[1737665247460,3.2078,3279.1,3277.8,3.2078]
[1737665247659,0.60969,3278.8,3277.8,3.2078]
[1737665247851,3.2078,3278.4,3278.2,0.00457798]
[1737665248153,0.00457798,3278.9,3278.2,0.00457798]
[1737665249150,0.00457798,3278.9,3278.6,3.2078]
[1737665249561,0.60969,3278.8,3278.6,3.2078]
[1737665249755,0.60977,3278.4,3278.2,0.00457798]
[1737665249956,3.2078,3278.7,3277.5,3.2078]
[1737665250150,3.2078,3278.3,3277.1,3.2078]
[1737665250368,0.60982,3278.2,3277.1,3.2078]
[1737665250658,3.2078,3278.3,3277.1,3.2078]
[1737665251057,3.2078,3277.4,3275.8,3.2078]
[1737665251256,1.8952,3278.6,3275.8,3.2078]
[1737665251257,0.61006,3276.8,3275.8,3.2078]
[1737665251466,6.52008526,3277.0,3275.5,3.2078]
[1737665251651,0.61006,3276.9,3275.5,3.2078]
[1737665251963,0.00457798,3276.6,3276.0,0.00457798]
[1737665252163,3.21237798,3276.6,3276.0,0.00457798]
[1737665252656,3.81799,3276.1,3276.0,0.00457798]
[1737665252858,3.2078,3276.1,3276.0,0.00457798]
[1737665253059,3.2078,3276.5,3275.9,3.2078]
[1737665253256,0.61016,3276.3,3275.5,3.2078]
[1737665253560,0.61012,3276.5,3275.0,0.61038]
[1737665254063,0.61012,3276.5,3275.1,0.61038]
[1737665254259,0.00457798,3276.6,3275.3,3.2078]
[1737665254462,0.00457798,3276.6,3275.8,3.2078]
[1737665254667,0.00457798,3276.6,3275.4,0.00457798]
[1737665254968,3.2078,3276.3,3275.6,3.2078]
[1737665255261,0.61017,3276.2,3275.4,0.00457798]
[1737665255662,3.81796,3276.3,3275.4,0.00457798]
[1737665256161,3.2078,3276.3,3275.4,0.00457798]
[1737665256569,3.2078,3276.3,3275.8,3.2078]
[1737665257267,3.2078,3276.3,3275.4,0.00457798]
[1737665257463,3.2078,3276.3,3275.8,3.2078]
[1737665258058,1.8127,3276.5,3275.4,0.00457798]
[1737665258253,5.0205,3276.5,3275.6,3.2078]
[1737665258458,5.0205,3276.5,3275.7,3.2078]
[1737665259058,5.63062,3276.5,3275.4,0.00457798]
[1737665259254,3.2078,3276.0,3275.4,0.00457798]
[1737665259658,3.2078,3276.4,3275.4,0.00457798]
[1737665259856,3.2078,3276.0,3275.4,0.00457798]
[1737665260670,5.0205,3276.5,3275.8,3.2078]
[1737665261071,5.0205,3276.5,3275.4,0.00457798]
[1737665261461,5.0205,3276.5,3275.5,0.6103]
[1737665261666,5.0205,3276.5,3275.4,0.00457798]
[1737665261963,5.0205,3276.5,3275.8,3.2078]
[1737665262667,3.2078,3276.5,3275.8,3.2078]
[1737665263069,3.2078,3276.5,3275.9,0.61023]
[1737665263375,3.2078,3276.5,3275.8,3.2078]
[1737665263672,0.00457798,3276.6,3275.4,0.00457798]
[1737665263673,0.61029,3275.6,3275.4,0.00457798]
[1737665263873,3.2078,3276.1,3275.4,0.00457798]
[1737665264174,0.61024,3275.9,3275.4,0.00457798]
[1737665264471,0.61026,3275.8,3275.4,0.00457798]
[1737665264672,1.9147,3276.0,3275.4,0.00457798]
[1737665264869,3.2078,3276.5,3275.7,3.2078]
[1737665265066,0.00457798,3276.6,3276.1,6.52008526]
[1737665265270,0.00457798,3276.6,3276.5,3.2078]
[1737665265959,0.00457798,3276.6,3276.0,3.2078]
[1737665266164,0.00457798,3276.6,3275.6,3.2078]
[1737665266360,0.61012,3276.5,3275.6,3.2078]
[1737665266570,0.61468798,3276.6,3275.6,3.81807]
[1737665266775,0.61015,3276.4,3275.6,3.2078]
[1737665266971,0.00457798,3276.6,3276.2,3.2078]
[1737665267273,0.00457798,3276.6,3275.7,3.2078]
[1737665268078,0.00457798,3276.6,3275.8,0.61023]
[1737665268382,0.00457798,3276.6,3276.3,3.2078]
[1737665268869,0.00457798,3276.6,3276.5,0.61012]
[1737665269069,0.61467798,3276.6,3276.3,3.2078]
[1737665269268,0.00457798,3276.6,3276.3,3.2078]
[1737665270465,0.00457798,3276.6,3275.8,0.61024]
[1737665270665,0.00457798,3276.6,3275.7,3.2078]
[1737665271073,0.00457798,3276.6,3276.1,3.2078]
[1737665272072,0.00457798,3276.6,3276.5,3.2078]
[1737665272278,0.00457798,3276.6,3276.5,8.81792]
[1737665272473,1e-08,3276.6,3276.5,8.81792]
[1737665273076,3.6085,3279.1,3278.5,0.60973]
[1737665273282,0.60961,3279.3,3278.6,0.60971]
[1737665273480,0.60958,3279.4,3278.7,0.6097]
[1737665273777,3.2078,3279.8,3278.7,40.8]
[1737665273975,5.4946,3280.3,3278.7,44.0078]
[1737665274175,0.60955,3279.6,3278.8,0.60968]
[1737665274366,0.00457798,3279.6,3278.9,0.00457798]
[1737665274778,0.00457798,3279.6,3279.1,3.2078]
[1737665275280,0.00457798,3279.6,3279.1,3.81743]
[1737665275477,0.00457798,3279.6,3279.1,3.2078]
[1737665276577,0.00457798,3279.6,3279.5,3.2078]
[1737665276783,0.00457798,3279.6,3279.5,3.81736]
[1737665276974,7.98e-06,3279.6,3279.5,8.81736]
[1737665277476,0.00269046,3280.4,3280.3,0.60941]
[1737665277677,4.6e-07,3280.4,3280.3,7.12949526]
[1737665277976,4.6e-07,3280.4,3280.3,12.12949526]
[1737665278175,4.6e-07,3280.4,3280.3,52.92949526]
[1737665278579,3.2078,3282.4,3280.3,52.32008526]
[1737665278770,3.2078,3282.4,3281.8,3.2078]
[1737665278978,3.2078,3282.4,3281.3,3.2078]
[1737665279184,0.00457798,3281.7,3280.9,3.2078]
[1737665279377,0.60926,3281.1,3280.3,41.40939]
[1737665279572,3.2078,3281.6,3280.7,3.2078]
[1737665279776,0.60935,3280.7,3280.2,3.2078]
[1737665280077,3.2078,3281.4,3280.2,3.2078]
[1737665280871,3.31228526,3281.5,3280.1,0.00457023]
[1737665281077,5.30135,3281.6,3280.1,0.00457023]
[1737665281078,0.60943,3280.2,3280.1,0.00457023]
[1737665281384,3.2078,3281.0,3280.1,0.00457023]
[1737665281584,3.2078,3280.5,3280.1,0.00457023]
[1737665282082,3.2078,3281.4,3280.1,3.21237023]
[1737665282285,3.7784,3281.6,3280.9,6.52008526]
[1737665282476,1.9242,3281.6,3281.3,3.2078]
[1737665282683,0.00457798,3281.7,3281.3,3.2078]
[1737665283073,0.00457798,3281.7,3280.9,3.31228526]
[1737665283279,0.00457798,3281.7,3280.6,3.2078]
[1737665283479,0.00457798,3281.7,3281.4,3.2078]
[1737665283784,0.00457798,3281.7,3281.6,0.60917]
[1737665284283,0.00457798,3281.7,3281.6,5.60917]
[1737665284486,0.00457798,3281.7,3281.6,46.40917]
[1737665284681,0.60881,3283.6,3281.8,3.20779202]
[1737665284876,1.9399,3283.8,3283.4,3.2078]
[1737665285078,1.9399,3283.8,3283.3,3.2078]
[1737665285279,0.60878,3283.7,3283.3,3.2078]
[1737665285484,0.60878,3283.7,3283.4,40.8]
[1737665285684,2.54867,3283.8,3283.4,40.8]
[1737665285882,3.2078,3284.6,3283.7,3.2078]
[1737665286179,0.00457023,3283.9,3283.7,3.2078]
[1737665286380,0.00457023,3283.9,3283.4,40.8]
[1737665286579,0.60876,3283.8,3283.7,3.2078]
[1737665286779,0.00457023,3283.9,3283.6,3.2078]
[1737665286981,0.00457023,3283.9,3283.7,3.2078]
[1737665288180,0.00457023,3283.9,3283.8,0.60876]
[1737665288587,3.7011,3285.8,3283.8,5.91356]
[1737665288793,3.7011,3285.8,3285.5,3.2078]
[1737665289084,3.2078,3286.7,3285.7,3.31228526]
[1737665289292,0.6082,3286.9,3286.2,3.2078]
[1737665289591,0.60819,3286.9,3286.2,3.2078]
[1737665289786,0.60816,3287.1,3286.2,3.81611]
[1737665289976,5.6216,3288.1,3286.8,3.2078]
[1737665289977,0.00211267,3286.9,3286.8,3.2078]
[1737665290380,0.00211267,3286.9,3286.8,8.81601]
[1737665290979,0.00211267,3286.9,3286.8,3.2078]
[1737665291679,0.00211267,3286.9,3286.3,3.2078]
[1737665291884,0.00211267,3286.9,3286.8,3.2078]
[1737665292086,0.61030267,3286.9,3286.2,0.00457023]
[1737665292290,3.20991267,3286.9,3286.2,0.00457023]
[1737665292585,0.60828,3286.4,3286.2,0.00457023]
[1737665292881,3.20991267,3286.9,3286.2,0.00457023]
[1737665293087,0.00211267,3286.9,3286.2,0.00457023]
[1737665293388,0.00211267,3286.9,3286.5,3.2078]
[1737665293887,0.00211267,3286.9,3286.2,0.00457023]
[1737665294394,0.00211267,3286.9,3286.3,3.2078]
[1737665295587,0.60821,3286.8,3286.3,3.2078]
[1737665295887,0.00211267,3286.9,3286.8,0.60821]
[1737665296089,0.00211267,3286.9,3286.7,3.2078]
[1737665296286,0.00211267,3286.9,3286.8,3.2078]
[1737665296794,0.00211267,3286.9,3286.8,3.81601]
[1737665296993,0.00211267,3286.9,3286.8,12.12829526]
[1737665297284,0.00211267,3286.9,3286.8,44.61601]
[1737665297488,0.00211267,3286.9,3286.8,47.92829526]
[1737665297689,0.00211267,3286.9,3286.8,47.32008526]
[1737665297892,3.2078,3288.0,3286.8,3.2078]
[1737665298085,2.42858,3288.6,3287.8,0.60801]
[1737665298281,0.60791,3288.5,3287.7,3.2078]
[1737665298485,1.8207,3288.6,3287.9,40.8]
[1737665298689,1.8207,3288.6,3288.0,0.60799]
[1737665298983,1.8207,3288.6,3287.9,40.8]
[1737665299191,2.46583,3288.9,3288.4,3.2078]
[1737665299392,1.858,3288.9,3288.0,0.00456321]
[1737665299890,1.858,3288.9,3288.1,0.60795]
[1737665300086,0.60784,3288.8,3288.0,0.61254321]
[1737665300292,0.60784,3288.8,3288.0,0.00456321]
[1737665300588,0.60789,3288.5,3288.0,0.00456321]
[1737665300792,3.2078,3288.6,3288.0,0.00456321]
[1737665301300,3.2078,3288.6,3287.9,3.2078]
[1737665301301,0.60799,3288.0,3287.9,3.2078]
[1737665301586,0.60798,3288.1,3287.9,3.2078]
[1737665301792,3.2078,3288.6,3287.9,3.2078]
[1737665301993,3.2078,3288.6,3287.3,6.52008526]
[1737665302196,1.858,3288.9,3287.8,3.2078]
[1737665302388,3.2078,3288.4,3287.4,3.2078]
[1737665302586,0.0045398,3288.3,3287.8,3.31228526]
[1737665302885,3.2078,3289.3,3288.2,3.2078]
[1737665303089,3.2078,3289.3,3287.6,0.00456321]
[1737665303090,3.2078,3289.5,3288.0,3.2078]
[1737665303393,5.05,3289.6,3288.9,3.2078]
[1737665303587,1.8422,3289.6,3289.4,3.81551]
[1737665303791,1.8422,3289.6,3289.4,3.2078]
[1737665303990,3.81533,3290.5,3289.4,3.2078]
[1737665304196,3.2078,3290.5,3289.4,3.2078]
[1737665304392,4.981,3290.5,3289.7,3.31228526]
[1737665304596,1.7732,3290.5,3289.5,44.0078]
[1737665304890,1.7732,3290.5,3289.6,3.21236321]
[1737665305089,1.51814,3292.0,3289.6,3.21236321]
[1737665305090,3.2078,3291.2,3290.4,3.2078]
[1737665305297,0.25572634,3292.3,3291.0,0.60743]
[1737665305298,3.5207,3291.8,3291.0,0.60743]
[1737665305499,3.5207,3291.8,3291.4,3.2078]
[1737665305695,3.5207,3291.8,3291.2,3.2078]
[1737665306097,3.21905072,3292.3,3290.3,1.51891]
[1737665306098,0.01125072,3292.3,3291.6,3.2078]
[1737665306298,0.01125072,3292.3,3292.2,0.60721]
[1737665306886,7.2e-07,3292.3,3292.2,46.40721]
[1737665307191,7.2e-07,3292.3,3292.2,3.2078]
[1737665307705,7.2e-07,3292.3,3292.2,44.0078]
[1737665308198,7.2e-07,3292.3,3292.0,3.2078]
[1737665308993,0.60725,3292.0,3291.3,0.00456321]
[1737665309296,0.60721,3292.2,3291.5,3.2078]
[1737665309499,7.2e-07,3292.3,3291.5,3.81514]
[1737665309691,0.60724,3292.1,3291.3,0.00456321]
[1737665309999,3.2078,3292.2,3291.3,0.00456321]
[1737665310493,7.2e-07,3292.3,3291.5,3.2078]
[1737665310696,7.2e-07,3292.3,3291.9,3.2078]
[1737665310898,7.2e-07,3292.3,3292.2,0.60721]
[1737665311093,7.2e-07,3292.3,3291.9,3.2078]
[1737665311299,7.2e-07,3292.3,3291.5,3.31228526]
[1737665311499,7.2e-07,3292.3,3291.4,3.2078]
[1737665311691,7.2e-07,3292.3,3291.8,3.2078]
[1737665311892,7.2e-07,3292.3,3291.4,3.2078]
[1737665312395,3.20780072,3292.3,3291.4,3.2078]
[1737665312794,7.2e-07,3292.3,3291.5,3.31228526]
[1737665312994,7.2e-07,3292.3,3292.2,3.91949526]
[1737665313299,7.2e-07,3292.3,3292.1,3.2078]
[1737665313500,7.2e-07,3292.3,3292.2,3.31228526]
[1737665313703,7.2e-07,3292.3,3292.2,3.91949526]
[1737665313891,7.2e-07,3292.3,3292.1,3.2078]
[1737665314095,7.2e-07,3292.3,3292.2,0.60721]
[1737665314701,0.60701,3293.3,3292.6,0.60712]
[1737665315001,3.2078,3293.4,3292.2,3.2078]
[1737665315199,0.60689,3294.0,3292.9,0.60707]
[1737665315398,0.60702,3293.3,3293.1,3.2078]
[1737665315601,3.2078,3293.9,3293.1,3.2078]
[1737665315790,0.60696,3293.6,3293.1,3.2078]
[1737665315996,3.2078,3293.9,3293.1,3.2078]
[1737665316190,3.2078,3293.4,3292.9,0.00455615]
[1737665316399,0.60706,3293.0,3292.9,0.00455615]
[1737665316708,3.81486,3293.0,3292.9,0.00455615]
[1737665317002,3.2078,3293.0,3291.7,3.2078]
[1737665317298,0.60712,3292.7,3292.1,3.2078]
[1737665317492,0.6071,3292.8,3292.1,3.2078]
[1737665317689,3.2078,3292.5,3291.7,3.2078]
[1737665317895,0.60718,3292.4,3291.7,3.2078]
[1737665318098,0.60726,3292.0,3291.7,3.2078]
[1737665318396,0.60725,3292.0,3291.7,3.21235615]
[1737665318598,0.00453259,3292.4,3291.7,0.00455615]
[1737665318793,0.60724,3292.1,3291.7,0.00455615]
[1737665318992,0.00488168,3292.1,3291.7,0.00455615]
[1737665319196,0.60729,3291.8,3291.7,0.00455615]
[1737665319591,0.6074,3291.3,3290.7,3.2078]
[1737665319798,0.60742,3291.1,3290.3,3.81535]
[1737665320003,3.2078,3291.2,3290.3,3.2078]
[1737665320306,1.7208,3291.0,3290.3,3.2078]
[1737665320807,3.2078,3290.7,3289.5,3.2078]